[Event "28th Hit Open-A 2024"]
[Site "Nova Gorica"]
[Date "2024.02.01"]
[Round "8.4"]
[White "Perossa, Nicolas"]
[Black "Beliavsky, Alexander G"]
[Result "1/2-1/2"]
[ECO "C55"]
[WhiteElo "2277"]
[BlackElo "2475"]
[Annotator "ChessBase"]
[PlyCount "102"]
[EventDate "2024.01.22"]
[EventType "swiss"]
[EventCountry "SLO"]
[SourceTitle "playchess.com"]
[Source "ChessBase"]
[SourceQuality "1"]
[TimeControl "5400+30"]

1. e4 {[%emt 0:00:02]} e5 {[%emt 0:00:09]} 2. Nf3 {[%emt 0:00:08]} Nc6 {[%emt 0:00:05]} 3. Bc4 {[%emt 0:00:08]} Nf6 {[%emt 0:00:16]} 4. d3 {[%emt 0:00:06]} Be7 {[%emt 0:00:26]} 5. O-O {[%emt 0:00:11]} O-O {[%emt 0:00:07]} 6. Re1 {[%emt 0:00:28]} d6 {[%emt 0:00:13]} 7. a4 {[%emt 0:00:10]} Be6 {[%emt 0:05:59]} 8. a5 {[%emt 0:08:45]} Bxc4 {[%emt 0:03:41]} 9. dxc4 {[%emt 0:00:06]} Nb8 {[%emt 0:00:22]} 10. Nc3 {[%emt 0:06:30]} c6 {[%emt 0:00:10]} 11. Qe2 {[%emt 0:19:45]} Na6 {[%emt 0:02:04]} 12. Rd1 {[%emt 0:00:17]} Qc7 {[%emt 0:03:03]} 13. Nd2 {[%emt 0:23:13]} Nd7 {[%emt 0:03:01]} 14. Nf1 {[%emt 0:01:34]} Ndc5 {[%emt 0:03:39]} 15. Ng3 {[%emt 0:05:01]} Rfe8 {[%emt 0:12:49]} 16. Be3 {[%emt 0:08:18]} g6 {[%emt 0:05:49]} 17. Qg4 {[%emt 0:06:22]} Qc8 {[%emt 0:02:29]} 18. Qf3 {[%emt 0:06:58]} Ne6 {[%emt 0:13:41]} 19. h4 {[%emt 0:00:42]} Bxh4 {[%emt 0:02:25]} 20. Nf5 {[%emt 0:00:15]} gxf5 {[%emt 0:01:20]} 21. exf5 {[%emt 0:00:01]} Ng7 {[%emt 0:00:07]} 22. Qg4 {[%emt 0:06:15]} Bxf2+ {[%emt 0:05:36]} 23. Bxf2 {[%emt 0:00:02]} Qxf5 {[%emt 0:00:06]} 24. Qh4 {[%emt 0:02:26]} Re6 {[%emt 0:04:39]} 25. Ne4 {[%emt 0:00:34]} Qg6 {[%emt 0:01:03]} 26. Ra3 {[%emt 0:01:14]} Nf5 {[%emt 0:03:22]} 27. Qh3 {[%emt 0:00:41]} Kh8 {[%emt 0:01:18]} 28. Rf3 {[%emt 0:02:56]} Nh6 {[%emt 0:00:57]} 29. Qh4 {[%emt 0:01:20]} f5 {[%emt 0:01:54]} 30. Ng5 {[%emt 0:00:18]} Rg8 {[%emt 0:03:14]} 31. Qxh6 {[%emt 0:00:06]} Qxg5 {[%emt 0:00:17]} 32. Qxg5 {[%emt 0:00:01]} Rxg5 {[%emt 0:00:05]} 33. Rb3 {[%emt 0:01:14]} Rg7 {[%emt 0:01:51]} 34. Bxa7 {[%emt 0:00:43]} f4 {[%emt 0:02:42]} 35. Rbd3 {[%emt 0:00:38]} Rgg6 {[%emt 0:00:33]} 36. Rb3 {[%emt 0:00:27]} Re7 {[%emt 0:00:22]} 37. Rbd3 {[%emt 0:00:25]} Rd7 {[%emt 0:00:08]} 38. c3 {[%emt 0:00:22]} c5 {[%emt 0:04:16]} 39. Rd5 {[%emt 0:00:42]} f3 {[%emt 0:00:43]} 40. Rxe5 {[%emt 0:00:34]} Rxg2+ {[%emt 0:00:47]} 41. Kf1 {[%emt 0:00:07]} Rxb2 {[%emt 0:03:49]} 42. Rf5 {[%emt 0:00:31]} f2 {[%emt 0:02:40]} 43. Bxc5 {[%emt 0:00:43]} Nxc5 {[%emt 0:01:17]} 44. Rxc5 {[%emt 0:00:06]} Rc2 {[%emt 0:00:24]} 45. Rf5 {[%emt 0:00:53]} Rc7 {[%emt 0:02:15]} 46. Rxd6 {[%emt 0:00:32]} Rxc3 {[%emt 0:00:11]} 47. Rg5 {[%emt 0:00:24]} Rc8 {[%emt 0:00:53]} 48. Kxf2 {[%emt 0:00:15]} R3xc4 {[%emt 0:00:21]} 49. Rd7 {[%emt 0:00:25]} Rc2+ {[%emt 0:02:47]} 50. Ke3 {[%emt 0:00:21]} R8c3+ {[%emt 0:00:27]} 51. Ke4 {[%emt 0:00:54]} Rc4+ {[%emt 0:01:09]} 1/2-1/2

[Event "28th Hit Open-A 2024"]
[Site "Nova Gorica"]
[Date "2024.02.01"]
[Round "8.5"]
[White "Doric, Darko"]
[Black "Bodrogi, Bendeguz"]
[Result "1/2-1/2"]
[ECO "D31"]
[WhiteElo "2456"]
[BlackElo "2261"]
[Annotator "ChessBase"]
[PlyCount "57"]
[EventDate "2024.01.22"]
[EventType "swiss"]
[EventCountry "SLO"]
[SourceTitle "playchess.com"]
[Source "ChessBase"]
[SourceQuality "1"]
[TimeControl "5400+30"]

1. d4 {[%emt 0:00:06]} d5 {[%emt 0:00:41]} 2. c4 {[%emt 0:00:07]} e6 {[%emt 0:01:00]} 3. Nc3 {[%emt 0:00:06]} a6 {[%emt 0:00:07]} 4. cxd5 {[%emt 0:00:07]} exd5 {[%emt 0:00:12]} 5. Qb3 {[%emt 0:00:10]} c5 {[%emt 0:02:37]} 6. Qxd5 {[%emt 0:00:35]} cxd4 {[%emt 0:00:18]} 7. Qxd8+ {[%emt 0:00:12]} Kxd8 {[%emt 0:00:09]} 8. Nd5 {[%emt 0:00:15]} Be6 {[%emt 0:01:46]} 9. Nf4 {[%emt 0:00:06]} Bb4+ {[%emt 0:02:53]} 10. Bd2 {[%emt 0:00:13]} Bxd2+ {[%emt 0:00:17]} 11. Kxd2 {[%emt 0:00:05]} Nc6 {[%emt 0:07:45]} 12. g3 {[%emt 0:00:06]} Nf6 {[%emt 0:04:19]} 13. Bg2 {[%emt 0:00:15]} Ke7 {[%emt 0:01:06]} 14. Ngh3 {[%emt 0:02:25]} Rac8 {[%emt 0:08:05]} 15. Rhc1 {[%emt 0:07:39]} Bf5 {[%emt 0:12:19]} 16. Rc5 {[%emt 0:29:34]} Be4 {[%emt 0:09:54]} 17. f3 {[%emt 0:00:20]} Nd7 {[%emt 0:02:54]} 18. Rcc1 {[%emt 0:00:33]} Bf5 {[%emt 0:07:30]} 19. Nf2 {[%emt 0:05:01]} f6 {[%emt 0:06:39]} 20. Nd5+ {[%emt 0:12:23]} Kd6 {[%emt 0:08:10]} 21. e4 {[%emt 0:00:18]} dxe3+ {[%emt 0:02:20]} 22. Nxe3 {[%emt 0:00:03]} Be6 {[%emt 0:00:22]} 23. f4 {[%emt 0:00:13]} Rhd8 {[%emt 0:04:58]} 24. Bxc6 {[%emt 0:00:58]} Rxc6 {[%emt 0:00:52]} 25. Rxc6+ {[%emt 0:04:47]} Kxc6 {[%emt 0:00:37]} 26. Rc1+ {[%emt 0:00:26]} Kb6 {[%emt 0:00:58]} 27. a3 {[%emt 0:00:20]} Nc5+ {[%emt 0:01:02]} 28. Ke2 {[%emt 0:00:03]} Nb3 {[%emt 0:01:16]} 29. Rd1 {[%emt 0:01:52]} 1/2-1/2

[Event "28th Hit Open-A 2024"]
[Site "Nova Gorica"]
[Date "2024.02.01"]
[Round "8.6"]
[White "Cvitan, Ognjen"]
[Black "Djuric, Stefan"]
[Result "1/2-1/2"]
[ECO "A39"]
[WhiteElo "2422"]
[BlackElo "2220"]
[Annotator "ChessBase"]
[PlyCount "33"]
[EventDate "2024.01.22"]
[EventType "swiss"]
[EventCountry "SLO"]
[SourceTitle "playchess.com"]
[Source "ChessBase"]
[SourceQuality "1"]
[TimeControl "5400+30"]

1. c4 {[%emt 0:01:10]} c5 {[%emt 0:10:18]} 2. Nf3 {[%emt 0:01:31]} Nf6 {[%emt 0:00:27]} 3. Nc3 {[%emt 0:04:59]} Nc6 {[%emt 0:01:16]} 4. g3 {[%emt 0:00:54]} g6 {[%emt 0:00:15]} 5. Bg2 {[%emt 0:00:06]} Bg7 {[%emt 0:00:02]} 6. O-O {[%emt 0:00:22]} O-O {[%emt 0:00:04]} 7. d4 {[%emt 0:01:04]} cxd4 {[%emt 0:01:00]} 8. Nxd4 {[%emt 0:00:12]} Nxd4 {[%emt 0:00:02]} 9. Qxd4 {[%emt 0:00:10]} d6 {[%emt 0:00:01]} 10. Qd3 {[%emt 0:07:32]} a6 {[%emt 0:01:25]} 11. Rd1 {[%emt 0:04:15]} Nd7 {[%emt 0:00:57]} 12. b3 {[%emt 0:02:34]} Rb8 {[%emt 0:00:22]} 13. Bg5 {[%emt 0:10:26]} h6 {[%emt 0:07:13]} 14. Be3 {[%emt 0:03:52]} b5 {[%emt 0:00:31]} 15. cxb5 {[%emt 0:00:26]} axb5 {[%emt 0:00:09]} 16. Rac1 {[%emt 0:01:42]} b4 {[%emt 0:06:58]} 17. Na4 {[%emt 0:08:14]} 1/2-1/2

[Event "28th Hit Open-A 2024"]
[Site "Nova Gorica"]
[Date "2024.02.01"]
[Round "8.7"]
[White "Fercec, Nenad"]
[Black "Skrbec, Leon"]
[Result "1/2-1/2"]
[ECO "B12"]
[WhiteElo "2410"]
[BlackElo "2218"]
[Annotator "ChessBase"]
[PlyCount "61"]
[EventDate "2024.01.22"]
[EventType "swiss"]
[EventCountry "SLO"]
[SourceTitle "playchess.com"]
[Source "ChessBase"]
[SourceQuality "1"]
[TimeControl "5400+30"]

1. e4 {[%emt 0:00:05]} c6 {[%emt 0:00:19]} 2. d4 {[%emt 0:00:09]} d5 {[%emt 0:00:04]} 3. e5 {[%emt 0:00:07]} Bf5 {[%emt 0:00:07]} 4. Nd2 {[%emt 0:00:20]} e6 {[%emt 0:00:15]} 5. Nb3 {[%emt 0:00:07]} Nd7 {[%emt 0:00:17]} 6. Nf3 {[%emt 0:00:48]} Qc7 {[%emt 0:00:06]} 7. Be2 {[%emt 0:05:16]} c5 {[%emt 0:00:48]} 8. Nxc5 {[%emt 0:01:25]} Nxc5 {[%emt 0:00:08]} 9. dxc5 {[%emt 0:00:07]} Bxc5 {[%emt 0:00:24]} 10. Bb5+ {[%emt 0:00:52]} Kf8 {[%emt 0:00:32]} 11. O-O {[%emt 0:00:07]} a6 {[%emt 0:03:08]} 12. Bd3 {[%emt 0:01:56]} Ne7 {[%emt 0:00:24]} 13. Bxf5 {[%emt 0:11:12]} Nxf5 {[%emt 0:00:08]} 14. Qd3 {[%emt 0:00:05]} Rc8 {[%emt 0:03:32]} 15. Bd2 {[%emt 0:00:24]} h6 {[%emt 0:09:47]} 16. b3 {[%emt 0:09:33]} g5 {[%emt 0:08:17]} 17. h3 {[%emt 0:01:36]} Ng3 {[%emt 0:09:07]} 18. Rfe1 {[%emt 0:00:26]} Ne4 {[%emt 0:00:28]} 19. Rxe4 {[%emt 0:02:31]} dxe4 {[%emt 0:02:47]} 20. Qxe4 {[%emt 0:00:05]} Qc6 {[%emt 0:00:52]} 21. Qg4 {[%emt 0:00:18]} Be7 {[%emt 0:05:35]} 22. Nd4 {[%emt 0:02:16]} Qd5 {[%emt 0:02:55]} 23. c4 {[%emt 0:00:22]} Qxe5 {[%emt 0:05:19]} 24. Bc3 {[%emt 0:01:57]} Rg8 {[%emt 0:01:02]} 25. Re1 {[%emt 0:00:25]} Qd6 {[%emt 0:20:07]} 26. Qf3 {[%emt 0:07:03]} Rg6 {[%emt 0:00:41]} 27. Qxb7 {[%emt 0:00:06]} Rb8 {[%emt 0:00:34]} 28. Qf3 {[%emt 0:04:10]} Rc8 {[%emt 0:01:40]} 29. Qb7 {[%emt 0:07:17]} Rb8 {[%emt 0:00:35]} 30. Qf3 {[%emt 0:00:07]} Rc8 {[%emt 0:00:04]} 31. Qb7 {[%emt 0:03:37]} 1/2-1/2

[Event "28th Hit Open-A 2024"]
[Site "Nova Gorica"]
[Date "2024.02.01"]
[Round "8.8"]
[White "Karacsonyi, Gellert"]
[Black "Gregoric, Andraz"]
[Result "1-0"]
[ECO "C54"]
[WhiteElo "2398"]
[BlackElo "2217"]
[Annotator "ChessBase"]
[PlyCount "77"]
[EventDate "2024.01.22"]
[EventType "swiss"]
[EventCountry "SLO"]
[SourceTitle "playchess.com"]
[Source "ChessBase"]
[SourceQuality "1"]
[TimeControl "5400+30"]

1. e4 {[%emt 0:00:01]} e5 {[%emt 0:02:44]} 2. Nf3 {[%emt 0:00:07]} Nc6 {[%emt 0:00:06]} 3. d4 {[%emt 0:00:05]} exd4 {[%emt 0:00:05]} 4. Bc4 {[%emt 0:00:07]} Bc5 {[%emt 0:00:06]} 5. c3 {[%emt 0:00:07]} Nf6 {[%emt 0:00:07]} 6. e5 {[%emt 0:00:13]} d5 {[%emt 0:00:06]} 7. Bb5 {[%emt 0:00:02]} Ne4 {[%emt 0:00:04]} 8. cxd4 {[%emt 0:00:08]} Bb6 {[%emt 0:00:05]} 9. Nc3 {[%emt 0:00:11]} Bg4 {[%emt 0:00:44]} 10. Be3 {[%emt 0:00:11]} O-O {[%emt 0:00:41]} 11. h3 {[%emt 0:00:06]} Bh5 {[%emt 0:00:18]} 12. Qc2 {[%emt 0:00:08]} Bg6 {[%emt 0:00:54]} 13. Qb3 {[%emt 0:00:06]} Ne7 {[%emt 0:09:49]} 14. Nh4 {[%emt 0:00:10]} c6 {[%emt 0:02:24]} 15. Nxg6 {[%emt 0:00:48]} hxg6 {[%emt 0:00:11]} 16. Bd3 {[%emt 0:00:12]} Nf5 {[%emt 0:01:30]} 17. Bxe4 {[%emt 0:02:10]} dxe4 {[%emt 0:05:06]} 18. O-O-O {[%emt 0:03:28]} Bxd4 {[%emt 0:04:29]} 19. Kb1 {[%emt 0:07:34]} c5 {[%emt 0:03:12]} 20. g4 {[%emt 0:00:42]} Ne7 {[%emt 0:05:36]} 21. Nxe4 {[%emt 0:02:39]} Qa5 {[%emt 0:07:14]} 22. Bxd4 {[%emt 0:01:46]} cxd4 {[%emt 0:00:10]} 23. f4 {[%emt 0:01:23]} Nd5 {[%emt 0:07:31]} 24. f5 {[%emt 0:16:06]} Nf4 {[%emt 0:09:05]} 25. e6 {[%emt 0:17:42]} Qe5 {[%emt 0:08:07]} 26. exf7+ {[%emt 0:02:26]} Kh8 {[%emt 0:00:07]} 27. Rhe1 {[%emt 0:08:47]} gxf5 {[%emt 0:00:52]} 28. Qg3 {[%emt 0:07:03]} fxe4 {[%emt 0:02:10]} 29. Qh4+ {[%emt 0:00:03]} Nh5 {[%emt 0:00:08]} 30. Rxd4 {[%emt 0:00:05]} Rxf7 {[%emt 0:01:29]} 31. Rdxe4 {[%emt 0:00:20]} Qb5 {[%emt 0:02:48]} 32. Re5 {[%emt 0:02:12]} Qd3+ {[%emt 0:02:49]} 33. Ka1 {[%emt 0:00:35]} Rf1 {[%emt 0:01:04]} 34. Rxh5+ {[%emt 0:02:43]} Kg8 {[%emt 0:00:05]} 35. Rh8+ {[%emt 0:00:20]} Kf7 {[%emt 0:00:01]} 36. Qh5+ {[%emt 0:00:07]} Kf6 {[%emt 0:00:20]} 37. g5+ {[%emt 0:00:05]} Kf5 {[%emt 0:00:03]} 38. Qf7+ {[%emt 0:00:47]} Kxg5 {[%emt 0:00:03]} 39. Rh5# {[%emt 0:00:08]} 1-0

[Event "28th Hit Open-A 2024"]
[Site "Nova Gorica"]
[Date "2024.02.01"]
[Round "8.9"]
[White "Zupancic, Jernej"]
[Black "Kulkarni Bhakti"]
[Result "1/2-1/2"]
[ECO "E14"]
[WhiteElo "2211"]
[BlackElo "2364"]
[Annotator "ChessBase"]
[PlyCount "46"]
[EventDate "2024.01.22"]
[EventType "swiss"]
[EventCountry "SLO"]
[SourceTitle "playchess.com"]
[Source "ChessBase"]
[SourceQuality "1"]
[TimeControl "5400+30"]

1. d4 {[%emt 0:00:14]} Nf6 {[%emt 0:01:08]} 2. c4 {[%emt 0:00:11]} e6 {[%emt 0:00:22]} 3. Nf3 {[%emt 0:00:15]} d5 {[%emt 0:00:18]} 4. e3 {[%emt 0:02:52]} b6 {[%emt 0:00:25]} 5. Nbd2 {[%emt 0:00:12]} Bd6 {[%emt 0:00:34]} 6. Bd3 {[%emt 0:00:10]} Bb7 {[%emt 0:00:17]} 7. b3 {[%emt 0:00:24]} Nbd7 {[%emt 0:02:15]} 8. Bb2 {[%emt 0:00:13]} c5 {[%emt 0:01:24]} 9. O-O {[%emt 0:01:10]} O-O {[%emt 0:04:44]} 10. Qe2 {[%emt 0:05:55]} Ne4 {[%emt 0:05:44]} 11. Rfd1 {[%emt 0:04:20]} cxd4 {[%emt 0:10:46]} 12. exd4 {[%emt 0:03:38]} Nxd2 {[%emt 0:03:42]} 13. Rxd2 {[%emt 0:00:45]} Bf4 {[%emt 0:00:31]} 14. Rdd1 {[%emt 0:00:10]} Qf6 {[%emt 0:01:10]} 15. Ne5 {[%emt 0:08:20]} Qh6 {[%emt 0:10:12]} 16. g3 {[%emt 0:09:20]} Nxe5 {[%emt 0:19:20]} 17. dxe5 {[%emt 0:00:55]} dxc4 {[%emt 0:01:23]} 18. Bxc4 {[%emt 0:02:53]} Qh3 {[%emt 0:09:14]} 19. Qf1 {[%emt 0:04:20]} Qh5 {[%emt 0:00:53]} 20. Be2 {[%emt 0:00:37]} Qf5 {[%emt 0:01:58]} 21. Bd3 {[%emt 0:01:04]} Qh5 {[%emt 0:01:31]} 22. Be2 {[%emt 0:00:50]} Qf5 {[%emt 0:02:34]} 23. Bd3 {[%emt 0:00:56]} Qh5 {[%emt 0:01:31]} 1/2-1/2

[Event "28th Hit Open-A 2024"]
[Site "Nova Gorica"]
[Date "2024.02.01"]
[Round "8.10"]
[White "Goroshkov, Maksym"]
[Black "Privitera, Franco"]
[Result "1-0"]
[ECO "C00"]
[WhiteElo "2338"]
[BlackElo "1919"]
[Annotator "ChessBase"]
[PlyCount "295"]
[EventDate "2024.01.22"]
[EventType "swiss"]
[EventCountry "SLO"]
[SourceTitle "playchess.com"]
[Source "ChessBase"]
[SourceQuality "1"]
[TimeControl "5400+30"]

1. e4 {[%emt 0:05:21]} e6 {[%emt 0:00:27]} 2. e5 {[%emt 0:01:50]} d5 {[%emt 0:01:34]} 3. exd6 {[%emt 0:00:06]} cxd6 {[%emt 0:01:16]} 4. d4 {[%emt 0:00:25]} Nf6 {[%emt 0:00:38]} 5. Nf3 {[%emt 0:00:13]} a6 {[%emt 0:01:21]} 6. Bd3 {[%emt 0:00:46]} Nc6 {[%emt 0:00:12]} 7. c3 {[%emt 0:00:20]} Be7 {[%emt 0:01:28]} 8. Bf4 {[%emt 0:01:30]} Nh5 {[%emt 0:04:52]} 9. Be3 {[%emt 0:00:21]} Nf6 {[%emt 0:00:08]} 10. h3 {[%emt 0:01:57]} b5 {[%emt 0:01:10]} 11. Bg5 {[%emt 0:07:30]} Bd7 {[%emt 0:04:49]} 12. Bxf6 {[%emt 0:00:53]} Bxf6 {[%emt 0:00:45]} 13. Nbd2 {[%emt 0:00:23]} O-O {[%emt 0:00:19]} 14. O-O {[%emt 0:00:14]} d5 {[%emt 0:00:51]} 15. Nb3 {[%emt 0:00:34]} b4 {[%emt 0:05:33]} 16. Nc5 {[%emt 0:03:22]} Be7 {[%emt 0:05:23]} 17. cxb4 {[%emt 0:03:26]} Nxb4 {[%emt 0:00:55]} 18. Be2 {[%emt 0:00:30]} Bb5 {[%emt 0:04:22]} 19. Bxb5 {[%emt 0:04:35]} axb5 {[%emt 0:00:02]} 20. Qb3 {[%emt 0:00:10]} Nc6 {[%emt 0:05:54]} 21. Qxb5 {[%emt 0:02:58]} Nxd4 {[%emt 0:00:53]} 22. Nxd4 {[%emt 0:00:06]} Rb8 {[%emt 0:00:02]} 23. Ncxe6 {[%emt 0:03:09]} fxe6 {[%emt 0:00:35]} 24. Qe2 {[%emt 0:00:15]} Qb6 {[%emt 0:02:20]} 25. Qxe6+ {[%emt 0:03:47]} Qxe6 {[%emt 0:00:40]} 26. Nxe6 {[%emt 0:00:03]} Rf6 {[%emt 0:00:35]} 27. Nc7 {[%emt 0:00:12]} Rd6 {[%emt 0:04:34]} 28. Rfe1 {[%emt 0:00:32]} Kf7 {[%emt 0:01:00]} 29. a4 {[%emt 0:02:46]} Rxb2 {[%emt 0:02:02]} 30. Rad1 {[%emt 0:01:41]} d4 {[%emt 0:01:30]} 31. Nb5 {[%emt 0:03:23]} Rd5 {[%emt 0:02:34]} 32. Rd3 {[%emt 0:12:42]} Rf5 {[%emt 0:06:03]} 33. Rf1 {[%emt 0:03:47]} Rd5 {[%emt 0:00:41]} 34. Nxd4 {[%emt 0:01:25]} Bf6 {[%emt 0:04:39]} 35. Rfd1 {[%emt 0:00:17]} Ra2 {[%emt 0:00:36]} 36. Nf3 {[%emt 0:03:52]} Rxd3 {[%emt 0:00:32]} 37. Rxd3 {[%emt 0:00:04]} Rxa4 {[%emt 0:00:11]} 38. g4 {[%emt 0:00:10]} h6 {[%emt 0:00:19]} 39. Kg2 {[%emt 0:00:10]} Rb4 {[%emt 0:05:48]} 40. Nh2 {[%emt 0:01:11]} Rb2 {[%emt 0:00:39]} 41. Nf1 {[%emt 0:00:17]} Rb5 {[%emt 0:01:57]} 42. Ng3 {[%emt 0:01:54]} Rb2 {[%emt 0:03:02]} 43. Ne4 {[%emt 0:00:56]} Rc2 {[%emt 0:04:55]} 44. Kg3 {[%emt 0:01:35]} Rc1 {[%emt 0:00:34]} 45. f4 {[%emt 0:01:12]} Rg1+ {[%emt 0:02:09]} 46. Kf2 {[%emt 0:00:11]} Rc1 {[%emt 0:00:10]} 47. Rd7+ {[%emt 0:00:41]} Be7 {[%emt 0:00:47]} 48. Rb7 {[%emt 0:00:27]} Kf8 {[%emt 0:02:47]} 49. f5 {[%emt 0:00:48]} Rc2+ {[%emt 0:01:23]} 50. Kf3 {[%emt 0:00:13]} Rh2 {[%emt 0:00:40]} 51. Kg3 {[%emt 0:01:51]} Rc2 {[%emt 0:00:13]} 52. Kf4 {[%emt 0:01:02]} Rc4 {[%emt 0:01:17]} 53. Ke5 {[%emt 0:01:09]} Ra4 {[%emt 0:03:08]} 54. Kd5 {[%emt 0:06:29]} Ra5+ {[%emt 0:01:37]} 55. Ke6 {[%emt 0:01:39]} Ra6+ {[%emt 0:00:01]} 56. Ke5 {[%emt 0:00:08]} Ra5+ {[%emt 0:00:39]} 57. Kf4 {[%emt 0:01:00]} Ra4 {[%emt 0:00:43]} 58. Rb3 {[%emt 0:00:42]} Bd6+ {[%emt 0:00:26]} 59. Kf3 {[%emt 0:00:07]} Be7 {[%emt 0:00:25]} 60. Nc3 {[%emt 0:00:18]} Ra1 {[%emt 0:01:39]} 61. Nd5 {[%emt 0:00:41]} Bd6 {[%emt 0:00:22]} 62. Rd3 {[%emt 0:04:31]} Ra3 {[%emt 0:01:35]} 63. Rxa3 {[%emt 0:00:21]} Bxa3 {[%emt 0:00:01]} 64. Ke4 {[%emt 0:01:03]} Bb2 {[%emt 0:00:17]} 65. Nf4 {[%emt 0:04:43]} Kf7 {[%emt 0:01:21]} 66. Ng6 {[%emt 0:00:03]} Bf6 {[%emt 0:00:27]} 67. Ne5+ {[%emt 0:00:16]} Ke7 {[%emt 0:00:30]} 68. Kd5 {[%emt 0:00:15]} Bg5 {[%emt 0:00:32]} 69. Nd3 {[%emt 0:02:37]} Bf6 {[%emt 0:01:45]} 70. Nf4 {[%emt 0:00:24]} Bb2 {[%emt 0:00:24]} 71. Ke4 {[%emt 0:01:00]} Kf7 {[%emt 0:00:19]} 72. Nd3 {[%emt 0:00:12]} Ba1 {[%emt 0:00:26]} 73. Kd5 {[%emt 0:00:09]} Kf6 {[%emt 0:00:51]} 74. Ke4 {[%emt 0:01:41]} Kf7 {[%emt 0:00:20]} 75. Nf4 {[%emt 0:01:25]} Bb2 {[%emt 0:00:33]} 76. Nh5 {[%emt 0:01:06]} Ba1 {[%emt 0:00:37]} 77. Kf3 {[%emt 0:00:28]} Bb2 {[%emt 0:00:19]} 78. Nf4 {[%emt 0:00:09]} Ba1 {[%emt 0:00:24]} 79. Nd5 {[%emt 0:00:03]} Be5 {[%emt 0:00:20]} 80. Ke4 {[%emt 0:00:05]} Ba1 {[%emt 0:00:24]} 81. Kf4 {[%emt 0:00:04]} Bb2 {[%emt 0:00:12]} 82. Kg3 {[%emt 0:00:04]} Be5+ {[%emt 0:00:16]} 83. Kh4 {[%emt 0:00:09]} Bb2 {[%emt 0:00:54]} 84. Kh5 {[%emt 0:00:10]} Be5 {[%emt 0:01:28]} 85. Ne3 {[%emt 0:00:12]} Bf4 {[%emt 0:01:15]} 86. Ng2 {[%emt 0:00:34]} Bd2 {[%emt 0:00:16]} 87. Nh4 {[%emt 0:00:07]} Bc3 {[%emt 0:00:20]} 88. Nf3 {[%emt 0:00:55]} Bb2 {[%emt 0:00:30]} 89. Nd2 {[%emt 0:00:11]} Be5 {[%emt 0:00:17]} 90. Ne4 {[%emt 0:00:07]} Bf4 {[%emt 0:00:53]} 91. h4 {[%emt 0:01:19]} Be5 {[%emt 0:02:09]} 92. Nd2 {[%emt 0:00:21]} Bf4 {[%emt 0:00:21]} 93. Nf3 {[%emt 0:00:16]} Kf6 {[%emt 0:00:47]} 94. Nd4 {[%emt 0:00:06]} Be5 {[%emt 0:01:04]} 95. Nb3 {[%emt 0:00:18]} Bb2 {[%emt 0:00:42]} 96. Nc5 {[%emt 0:00:09]} Kf7 {[%emt 0:00:20]} 97. Nd3 {[%emt 0:00:53]} Bd4 {[%emt 0:00:21]} 98. Nf4 {[%emt 0:00:31]} Be5 {[%emt 0:00:28]} 99. Nd5 {[%emt 0:00:16]} Bb2 {[%emt 0:00:48]} 100. Nb6 {[%emt 0:00:25]} Bd4 {[%emt 0:00:36]} 101. Nc4 {[%emt 0:00:05]} Ba1 {[%emt 0:00:37]} 102. Na5 {[%emt 0:00:52]} Bc3 {[%emt 0:00:25]} 103. Nc6 {[%emt 0:00:19]} Bb2 {[%emt 0:00:28]} 104. Nd8+ {[%emt 0:00:24]} Ke7 {[%emt 0:00:13]} 105. Ne6 {[%emt 0:00:15]} Kf7 {[%emt 0:00:02]} 106. Nc5 {[%emt 0:00:48]} Be5 {[%emt 0:00:23]} 107. Nb7 {[%emt 0:00:22]} Bc7 {[%emt 0:00:27]} 108. g5 {[%emt 0:00:14]} hxg5 {[%emt 0:00:29]} 109. hxg5 {[%emt 0:00:13]} Be5 {[%emt 0:00:43]} 110. Nd8+ {[%emt 0:00:05]} Ke8 {[%emt 0:00:22]} 111. Nc6 {[%emt 0:00:03]} Bc3 {[%emt 0:00:12]} 112. Kg6 {[%emt 0:00:07]} Kf8 {[%emt 0:00:17]} 113. Nd8 {[%emt 0:00:18]} Kg8 {[%emt 0:00:31]} 114. Ne6 {[%emt 0:00:34]} Bb2 {[%emt 0:00:50]} 115. Nf4 {[%emt 0:00:21]} Ba1 {[%emt 0:00:49]} 116. Nd5 {[%emt 0:01:20]} Bb2 {[%emt 0:00:44]} 117. Ne7+ {[%emt 0:00:13]} Kf8 {[%emt 0:00:18]} 118. Nc6 {[%emt 0:00:05]} Kg8 {[%emt 0:00:06]} 119. Na5 {[%emt 0:00:19]} Bc3 {[%emt 0:00:23]} 120. Nc4 {[%emt 0:00:12]} Bd4 {[%emt 0:00:21]} 121. Nd2 {[%emt 0:00:22]} Bc3 {[%emt 0:00:24]} 122. Nf3 {[%emt 0:00:28]} Bb2 {[%emt 0:00:14]} 123. Ne1 {[%emt 0:00:07]} Bc3 {[%emt 0:00:13]} 124. Nc2 {[%emt 0:00:05]} Bb2 {[%emt 0:00:39]} 125. Nb4 {[%emt 0:00:04]} Ba1 {[%emt 0:00:26]} 126. Nd5 {[%emt 0:00:12]} Bb2 {[%emt 0:00:22]} 127. Ne3 {[%emt 0:00:33]} Bd4 {[%emt 0:00:13]} 128. Ng2 {[%emt 0:00:04]} Ba1 {[%emt 0:00:10]} 129. Nf4 {[%emt 0:00:04]} Be5 {[%emt 0:00:12]} 130. Nd3 {[%emt 0:00:57]} Bd4 {[%emt 0:00:08]} 131. Ne1 {[%emt 0:00:51]} Bc3 {[%emt 0:00:12]} 132. Nf3 {[%emt 0:00:04]} Bb2 {[%emt 0:00:07]} 133. Ng1 {[%emt 0:00:08]} Bd4 {[%emt 0:00:15]} 134. Ne2 {[%emt 0:00:11]} Be5 {[%emt 0:00:03]} 135. Nc1 {[%emt 0:00:04]} Bb2 {[%emt 0:00:17]} 136. Nd3 {[%emt 0:00:11]} Bd4 {[%emt 0:00:15]} 137. Nb4 {[%emt 0:00:26]} Bc3 {[%emt 0:00:20]} 138. Nd5 {[%emt 0:00:00]} Be5 {[%emt 0:00:21]} 139. Ne7+ {[%emt 0:00:00]} Kf8 {[%emt 0:00:19]} 140. Nc6 {[%emt 0:00:00]} Bc3 {[%emt 0:00:08]} 141. Kh7 {[%emt 0:00:08]} Bb2 {[%emt 0:00:59]} 142. Nb4 {[%emt 0:01:08]} Bc3 {[%emt 0:00:45]} 143. Nd5 {[%emt 0:00:05]} Be5 {[%emt 0:00:54]} 144. g6 {[%emt 0:00:17]} Bb2 {[%emt 0:01:56]} 145. f6 {[%emt 0:00:50]} Be5 {[%emt 0:00:41]} 146. f7 {[%emt 0:00:23]} Bd6 {[%emt 0:01:04]} 147. Nb6 {[%emt 0:00:18]} Ke7 {[%emt 0:01:17]} 148. Nc8+ {[%emt 0:00:04]} 1-0